fUST/lending_fUST_20240322
["ID","MTS","AMOUNT","RATE_DAILY","PERIOD"]
[320049815,1711115458737,-2025.62,0.00031232,2]
[320049816,1711115458746,-500.0,0.00031232,2]
[320049817,1711115458755,-500.0,0.00031232,2]
[320049818,1711115458764,-500.0,0.00031232,2]
[320049819,1711115458774,-500.0,0.00031232,2]
[320049820,1711115458783,-9316.4,0.00031232,2]
[320049821,1711115458793,-500.0,0.00031232,2]
[320049822,1711115458802,-2931.18,0.00031232,2]
[320049823,1711115458811,-500.0,0.00031232,2]
[320049824,1711115458820,-500.0,0.00031232,2]
[320049825,1711115458830,-891.94,0.00031232,2]
[320049826,1711115458839,-709.56,0.00031232,2]
[320049827,1711115458848,-572.61,0.00031232,2]
[320049828,1711115458857,-151.357958,0.00031232,2]
[320049829,1711115458866,-500.0,0.00031232,2]
[320049830,1711115458875,-22444.09,0.00031232,2]
[320049831,1711115458884,-505.53,0.00031232,2]
[320049832,1711115458893,-2628.51,0.00031232,2]
[320049833,1711115458902,-2148.91,0.00031232,2]
[320049834,1711115458911,-500.0,0.00031232,2]
[320049835,1711115458920,-599.04,0.00031232,2]
[320049836,1711115458929,-2181.35,0.00031232,2]
[320049837,1711115458938,-1053.89,0.00031232,2]
[320049838,1711115458947,-2225.28,0.00031232,2]
[320049839,1711115458957,-2785.42,0.00031232,2]
[320049840,1711115458966,-4008.14,0.00031232,2]
[320049841,1711115458975,-3127.98,0.00031232,2]
[320049842,1711115458984,-500.0,0.00031232,2]
[320049843,1711115458994,-561.94,0.00031232,2]
[320049844,1711115459004,-547.24,0.00031232,2]
[320049845,1711115459013,-1586.83,0.00031232,2]
[320049846,1711115459022,-905.49,0.00031232,2]
[320049847,1711115459033,-588.65,0.00031232,2]
[320049848,1711115459042,-500.0,0.00031232,2]
[320049849,1711115459051,-604.36,0.00031232,2]
[320049850,1711115459060,-500.0,0.00031232,2]
[320049851,1711115459070,-5969.81,0.00031232,2]
[320049852,1711115459079,-1166.06,0.00031232,2]
[320049853,1711115459088,-2279.41,0.00031232,2]
[320049854,1711115459097,-500.0,0.00031232,2]
[320049855,1711115459108,-1051.13,0.00031232,2]
[320049856,1711115459117,-31274.5,0.00031232,2]
[320049857,1711115459126,-30529.47,0.00031232,2]
[320049858,1711115459135,-5703.1,0.00031232,2]
[320049859,1711115459144,-241.28784113,0.00031232,2]
[320049860,1711115459153,-6699.23,0.00031232,2]
[320049861,1711115459162,-591.2,0.00031232,2]
[320049862,1711115459172,-2922.32,0.00031232,2]
[320049863,1711115459182,-500.0,0.00031232,2]
[320049864,1711115459193,-500.0,0.00031232,2]
[320049865,1711115459203,-500.0,0.00031232,2]
[320049866,1711115459212,-500.0,0.00031232,2]
[320049867,1711115459221,-2119.44,0.00031232,2]
[320049868,1711115459231,-668.63,0.00031232,2]
[320049869,1711115459240,-2385.98,0.00031232,2]
[320049870,1711115459249,-500.0,0.00031232,2]
[320049871,1711115459258,-1835.6,0.00031232,2]
[320049872,1711115459268,-500.0,0.00031232,2]
[320049873,1711115459277,-500.0,0.00031232,2]
[320049874,1711115459287,-794.49,0.00031232,2]
[320049875,1711115459297,-1781.83,0.00031232,2]
[320049876,1711115459306,-5258.14,0.00031232,2]
[320049877,1711115459315,-665.32,0.00031232,2]
[320049878,1711115459324,-500.0,0.00031232,2]
[320049879,1711115459334,-2000.0,0.000315,2]
[320049880,1711115459343,-2000.0,0.0003151,2]
[320049881,1711115459352,-2000.0,0.0003152,2]
[320049882,1711115459361,-2000.0,0.0003153,2]
[320049883,1711115459371,-2000.0,0.0003154,2]
[320049884,1711115459379,-2000.0,0.0003155,2]
[320049885,1711115459389,-2000.0,0.0003156,2]
[320049886,1711115459398,-2000.0,0.0003157,2]
[320049887,1711115459407,-2000.0,0.0003158,2]
[320049888,1711115459417,-2000.0,0.0003159,2]
[320049889,1711115459426,-2000.0,0.000316,2]
[320049890,1711115459436,-2000.0,0.0003161,2]
[320049891,1711115459445,-153.0,0.00031616,2]
[320049892,1711115459454,-153.0,0.00031616,2]
[320049893,1711115459464,-153.0,0.00031616,2]
[320049894,1711115459473,-153.0,0.00031616,2]
[320049895,1711115459482,-153.0,0.00031616,2]
[320049896,1711115459492,-2000.0,0.0003162,2]
[320049897,1711115459501,-2000.0,0.0003163,2]
[320049898,1711115459511,-2000.0,0.0003164,2]
[320049899,1711115459520,-2000.0,0.0003165,2]
[320049900,1711115459530,-2000.0,0.0003166,2]
[320049901,1711115459541,-2000.0,0.0003167,2]
[320049902,1711115459554,-2000.0,0.0003168,2]
[320049903,1711115459564,-2000.0,0.0003169,2]
[320049904,1711115459573,-2000.0,0.000317,2]
[320049905,1711115459583,-2000.0,0.0003171,2]
[320049906,1711115459594,-2000.0,0.0003172,2]
[320049907,1711115459603,-2000.0,0.0003173,2]
[320049908,1711115459613,-2000.0,0.0003174,2]
[320049909,1711115459622,-2000.0,0.0003175,2]
[320049910,1711115459632,-2000.0,0.0003176,2]
[320049911,1711115459642,-2000.0,0.0003177,2]
[320049912,1711115459652,-283.76002353,0.0003178,3]
[320049913,1711115459662,-3817.0,0.0003178,5]
[320049914,1711115459672,-254.32263839,0.0003178,2]
[320049915,1711115459681,-500.0,0.0003178,2]
[320049916,1711115459690,-955.22,0.0003178,2]
[320049917,1711115459699,-500.0,0.0003178,2]
[320049918,1711115459710,-676.25,0.0003178,2]
[320049919,1711115459721,-500.0,0.0003178,2]
[320049920,1711115459732,-307.92670343,0.0003178,2]
[320049921,1711115459741,-616.97,0.0003178,2]
[320049922,1711115459751,-808.45,0.0003178,2]
[320049923,1711115459761,-500.0,0.0003178,2]
[320049924,1711115459772,-500.0,0.0003178,2]
[320049925,1711115459782,-500.0,0.0003178,2]
[320049926,1711115459795,-616.53,0.0003178,2]
[320049927,1711115459804,-500.0,0.0003178,2]
[320049928,1711115459815,-2114.34,0.0003178,2]
[320049929,1711115459825,-500.0,0.0003178,2]
[320049930,1711115459835,-579.77,0.0003178,2]
[320049931,1711115459846,-500.0,0.0003178,2]
[320049932,1711115459856,-854.2,0.0003178,2]
[320049933,1711115459867,-1432.33,0.0003178,2]
[320049934,1711115459878,-1109.84,0.0003178,2]
[320049935,1711115459889,-2496.11,0.0003178,2]
[320049936,1711115459899,-705.27,0.0003178,2]
[320049937,1711115459910,-811.02,0.0003178,2]
[320049938,1711115459922,-1450.07,0.0003178,2]
[320049939,1711115459932,-500.0,0.0003178,2]
[320049940,1711115459943,-525.82,0.0003178,2]
[320049941,1711115459953,-594.77,0.0003178,2]
[320049942,1711115459964,-500.0,0.0003178,2]
[320049943,1711115459975,-2110.5,0.0003178,2]
[320049944,1711115459985,-653.88,0.0003178,2]
[320049945,1711115459996,-500.0,0.0003178,2]
[320049946,1711115460006,-500.0,0.0003178,2]
[320049947,1711115460017,-2170.67,0.0003178,2]
[320049948,1711115460027,-500.0,0.0003178,2]
[320049949,1711115460045,-500.0,0.0003178,2]
[320049950,1711115460055,-2000.0,0.0003178,2]
[320049951,1711115460066,-500.0,0.0003178,2]
[320049952,1711115460076,-500.0,0.0003178,2]
[320049953,1711115460087,-500.0,0.0003178,2]
[320049954,1711115460098,-3328.74,0.0003178,2]
[320049955,1711115460108,-500.0,0.0003178,2]
[320049956,1711115460117,-500.0,0.0003178,2]
[320049957,1711115460126,-872.36,0.0003178,2]
[320049958,1711115460135,-567.31,0.0003178,2]
[320049959,1711115460144,-523.07,0.0003178,2]
[320049960,1711115460153,-500.0,0.0003178,2]
[320049961,1711115460163,-500.0,0.0003178,2]
[320049962,1711115460172,-662.01,0.0003178,2]
[320049963,1711115460182,-500.0,0.0003178,2]
[320049964,1711115460191,-2025.62,0.0003178,2]
[320049965,1711115460200,-500.0,0.0003178,2]
[320049966,1711115460209,-500.0,0.0003178,2]
[320049967,1711115460218,-500.0,0.0003178,2]
[320049968,1711115460228,-500.0,0.0003178,2]
[320049969,1711115460237,-9316.4,0.0003178,2]
[320049970,1711115460246,-500.0,0.0003178,2]
[320049971,1711115460256,-2931.18,0.0003178,2]
[320049972,1711115460265,-500.0,0.0003178,2]
[320049973,1711115460274,-500.0,0.0003178,2]
[320049974,1711115460287,-891.94,0.0003178,2]
[320049975,1711115460296,-709.56,0.0003178,2]
[320049976,1711115460305,-572.61,0.0003178,2]
[320049977,1711115460314,-500.0,0.0003178,2]
[320049978,1711115460323,-22444.09,0.0003178,2]
[320049979,1711115460332,-505.53,0.0003178,2]
[320049980,1711115460341,-2628.51,0.0003178,2]
[320049981,1711115460351,-2148.91,0.0003178,2]
[320049982,1711115460360,-500.0,0.0003178,2]
[320049983,1711115460369,-599.04,0.0003178,2]
[320049984,1711115460378,-2181.35,0.0003178,2]
[320049985,1711115460387,-1053.89,0.0003178,2]
[320049986,1711115460397,-2225.28,0.0003178,2]
[320049987,1711115460406,-2785.42,0.0003178,2]
[320049988,1711115460415,-4008.14,0.0003178,2]
[320049989,1711115460425,-3127.98,0.0003178,2]
[320049990,1711115460434,-500.0,0.0003178,2]
[320049991,1711115460443,-561.94,0.0003178,2]
[320049992,1711115460452,-547.24,0.0003178,2]
[320049993,1711115460461,-1586.83,0.0003178,2]
[320049994,1711115460470,-905.49,0.0003178,2]
[320049995,1711115460479,-588.65,0.0003178,2]
[320049996,1711115460488,-500.0,0.0003178,2]
[320049997,1711115460497,-604.36,0.0003178,2]
[320049998,1711115460506,-476.29509276,0.0003178,2]
[320049999,1711115460515,-5969.81,0.0003178,2]
[320050000,1711115460524,-1166.06,0.0003178,2]
[320050001,1711115460536,-2279.41,0.0003178,2]
[320050002,1711115460548,-500.0,0.0003178,2]
[320050003,1711115460557,-31274.5,0.0003178,2]
[320050004,1711115460567,-1051.13,0.0003178,2]
[320050005,1711115460576,-30529.47,0.0003178,2]
[320050006,1711115460587,-5703.1,0.0003178,2]
[320050007,1711115460597,-6699.23,0.0003178,2]
[320050008,1711115460605,-591.2,0.0003178,2]
[320050009,1711115460615,-2922.32,0.0003178,2]
[320050010,1711115460624,-500.0,0.0003178,2]
[320050011,1711115460633,-500.0,0.0003178,2]
[320050012,1711115460726,-500.0,0.0003178,2]
[320050013,1711115460736,-500.0,0.0003178,2]
[320050014,1711115460746,-2119.44,0.0003178,2]
[320050015,1711115460756,-668.63,0.0003178,2]
[320050016,1711115460766,-2385.98,0.0003178,2]
[320050017,1711115460775,-500.0,0.0003178,2]
[320050018,1711115460788,-1835.6,0.0003178,2]
[320050019,1711115460797,-500.0,0.0003178,2]
[320050020,1711115460807,-500.0,0.0003178,2]
[320050021,1711115460817,-794.49,0.0003178,2]
[320050022,1711115460828,-1781.83,0.0003178,2]
[320050023,1711115460838,-5258.14,0.0003178,2]
[320050024,1711115460849,-665.32,0.0003178,2]
[320050025,1711115460860,-500.0,0.0003178,2]
[320050026,1711115460871,-2000.0,0.0003179,2]
[320050027,1711115460882,-2000.0,0.000318,2]
[320050028,1711115460893,-2000.0,0.0003181,2]
[320050029,1711115460903,-2000.0,0.0003182,2]
[320050030,1711115460914,-363.297745,0.00031822,2]
[320050031,1711115460924,-3284.585551,0.0003183,2]
[320050032,1711115460937,-1077.65430724,0.00032275,2]
[320050033,1711115460947,-500.0,0.00032328,2]
[320050034,1711115460956,-955.22,0.00032328,2]
[320050035,1711115460966,-306.22509794,0.00032328,2]
[320050036,1711115460976,-676.25,0.00032328,2]
[320050037,1711115460986,-500.0,0.00032328,2]
[320050038,1711115460996,-616.97,0.00032328,2]
[320050039,1711115461005,-808.45,0.00032328,2]
[320050040,1711115461015,-500.0,0.00032328,2]
[320050041,1711115461025,-500.0,0.00032328,2]
[320050042,1711115461037,-505.17836061,0.00032328,2]
[320050043,1711115461046,-616.53,0.00032328,2]
[320050044,1711115461056,-500.0,0.00032328,2]
[320050045,1711115461066,-2114.34,0.00032328,2]
[320050046,1711115461076,-500.0,0.00032328,2]
[320050047,1711115461086,-579.77,0.00032328,2]
[320050048,1711115461096,-500.0,0.00032328,2]
[320050049,1711115461106,-854.2,0.00032328,2]
[320050050,1711115461115,-1432.33,0.00032328,2]
[320050051,1711115461125,-1109.84,0.00032328,2]
[320050052,1711115461134,-2496.11,0.00032328,2]
[320050053,1711115461145,-705.27,0.00032328,2]
[320050054,1711115461154,-811.02,0.00032328,2]
[320050055,1711115461164,-1450.07,0.00032328,2]
[320050056,1711115461174,-500.0,0.00032328,2]
[320050057,1711115461183,-525.82,0.00032328,2]
[320050058,1711115461193,-594.77,0.00032328,2]
[320050059,1711115461203,-2110.5,0.00032328,2]
[320050060,1711115461212,-653.88,0.00032328,2]
[320050061,1711115461222,-500.0,0.00032328,2]
[320050062,1711115461231,-500.0,0.00032328,2]
[320050063,1711115461241,-500.0,0.00032328,2]
[320050064,1711115461250,-2170.67,0.00032328,2]
[320050065,1711115461260,-500.0,0.00032328,2]
[320050066,1711115461270,-500.0,0.00032328,2]
[320050067,1711115461279,-500.0,0.00032328,2]
[320050068,1711115461293,-500.0,0.00032328,2]
[320050069,1711115461304,-500.0,0.00032328,2]
[320050070,1711115461313,-3328.74,0.00032328,2]
[320050071,1711115461322,-500.0,0.00032328,2]
[320050072,1711115461331,-500.0,0.00032328,2]
[320050073,1711115461342,-872.36,0.00032328,2]
[320050074,1711115461351,-567.31,0.00032328,2]
[320050075,1711115461361,-523.07,0.00032328,2]
[320050076,1711115461371,-500.0,0.00032328,2]
[320050077,1711115461381,-500.0,0.00032328,2]
[320050078,1711115461390,-662.01,0.00032328,2]
[320050079,1711115461399,-500.0,0.00032328,2]
[320050080,1711115461408,-2025.62,0.00032328,2]
[320050081,1711115461418,-626.58727336,0.00032328,2]
[320050082,1711115461427,-500.0,0.00032328,2]
[320050083,1711115461436,-500.0,0.00032328,2]
[320050084,1711115461445,-500.0,0.00032328,2]
[320050085,1711115461454,-602.0366385,0.00032328,2]
[320050086,1711115461588,-5208.4740646,0.00032328,2]
[320050087,1711115461601,-301.37639814,0.00032328,2]
[320050088,1711115461616,-3204.51289876,0.00032328,2]
[320050089,1711115461627,-500.0,0.00032328,2]
[320050090,1711115461637,-2931.18,0.00032328,2]
[320050091,1711115461646,-500.0,0.00032328,2]
[320050092,1711115461656,-500.0,0.00032328,2]
[320050093,1711115461665,-891.94,0.00032328,2]
[320050094,1711115461675,-709.56,0.00032328,2]
[320050095,1711115461684,-572.61,0.00032328,2]
[320050096,1711115461694,-500.0,0.00032328,2]
[320050097,1711115461704,-17022.24097007,0.00032328,2]
[320050098,1711115461717,-5421.84902993,0.00032328,2]
[320050099,1711115461727,-505.53,0.00032328,2]
[320050100,1711115461737,-2628.51,0.00032328,2]
[320050101,1711115461746,-2148.91,0.00032328,2]
[320050102,1711115461756,-500.0,0.00032328,2]
[320050103,1711115461768,-599.04,0.00032328,2]
[320050104,1711115461777,-2181.35,0.00032328,2]
[320050105,1711115461791,-1053.89,0.00032328,2]
[320050106,1711115461800,-2225.28,0.00032328,2]
[320050107,1711115461810,-2785.42,0.00032328,2]
[320050108,1711115461819,-4008.14,0.00032328,2]
[320050109,1711115461828,-3127.98,0.00032328,2]
[320050110,1711115461838,-500.0,0.00032328,2]
[320050111,1711115461847,-561.94,0.00032328,2]
[320050112,1711115461856,-547.24,0.00032328,2]
[320050113,1711115461866,-1586.83,0.00032328,2]
[320050114,1711115461875,-905.49,0.00032328,2]
[320050115,1711115461885,-588.65,0.00032328,2]
[320050116,1711115461894,-500.0,0.00032328,2]
[320050117,1711115461904,-604.36,0.00032328,2]
[320050118,1711115461913,-5969.81,0.00032328,2]
[320050119,1711115461923,-1166.06,0.00032328,2]
[320050120,1711115461932,-2279.41,0.00032328,2]
[320050121,1711115461942,-479.46742238,0.00032328,2]
[320050122,1711115461951,-31274.5,0.00032328,2]
[320050123,1711115461961,-1051.13,0.00032328,2]
[320050124,1711115461971,-30529.47,0.00032328,2]
[320050125,1711115461982,-5703.1,0.00032328,2]
[320050126,1711115461993,-6699.23,0.00032328,2]
[320050127,1711115462004,-591.2,0.00032328,2]
[320050128,1711115462015,-2922.32,0.00032328,2]
[320050129,1711115462026,-500.0,0.00032328,2]
[320050130,1711115462040,-500.0,0.00032328,2]
[320050131,1711115462050,-500.0,0.00032328,2]
[320050132,1711115462061,-500.0,0.00032328,2]
[320050133,1711115462072,-2119.44,0.00032328,2]
[320050134,1711115462081,-668.63,0.00032328,2]
[320050135,1711115462091,-2385.98,0.00032328,2]
[320050136,1711115462101,-500.0,0.00032328,2]
[320050137,1711115462110,-1835.6,0.00032328,2]
[320050138,1711115462119,-500.0,0.00032328,2]
[320050139,1711115462129,-500.0,0.00032328,2]
[320050140,1711115462139,-794.49,0.00032328,2]
[320050141,1711115462150,-1781.83,0.00032328,2]
[320050142,1711115462160,-5258.14,0.00032328,2]
[320050143,1711115462170,-665.32,0.00032328,2]
[320050144,1711115462179,-500.0,0.00032328,2]
[320050145,1711115462188,-153.0,0.00032329,2]
[320050146,1711115462198,-171.90056342,0.00032547,3]
[320050147,1711115462208,-2000.0,0.00032558,2]
[320050148,1711115462218,-400.0,0.000328,6]
[320050149,1711115462227,-400.0,0.000328,6]
[320050150,1711115462236,-800.0,0.000328,6]
[320050151,1711115462246,-800.0,0.000328,6]
[320050152,1711115462255,-800.0,0.000328,6]
[320050153,1711115462265,-689.76839438,0.00032873,30]
[320050154,1711115462275,-1008.30405865,0.00032876,4]
[320050155,1711115462285,-500.0,0.00032876,2]
[320050156,1711115462297,-955.22,0.00032876,2]
[320050157,1711115462307,-676.25,0.00032876,2]
[320050158,1711115462317,-500.0,0.00032876,2]
[320050159,1711115462327,-616.97,0.00032876,2]
[320050160,1711115462337,-808.45,0.00032876,2]
[320050161,1711115462346,-500.0,0.00032876,2]
[320050162,1711115462356,-500.0,0.00032876,2]
[320050163,1711115462365,-616.53,0.00032876,2]
[320050164,1711115462374,-500.0,0.00032876,2]
[320050165,1711115462383,-2114.34,0.00032876,2]
[320050166,1711115462392,-329.3473166,0.00032876,2]
[320050167,1711115462402,-579.77,0.00032876,2]
[320050168,1711115462411,-500.0,0.00032876,2]
[320050169,1711115462421,-854.2,0.00032876,2]
[320050170,1711115462430,-1432.33,0.00032876,2]
[320050171,1711115462439,-1109.84,0.00032876,2]
[320050172,1711115462448,-2496.11,0.00032876,2]
[320050173,1711115462457,-705.27,0.00032876,2]
[320050174,1711115462468,-811.02,0.00032876,2]
[320050175,1711115462477,-1450.07,0.00032876,2]
[320050176,1711115462487,-500.0,0.00032876,2]
[320050177,1711115462496,-525.82,0.00032876,2]
[320050178,1711115462505,-594.77,0.00032876,2]
[320050179,1711115462514,-2110.5,0.00032876,2]
[320050180,1711115462523,-653.88,0.00032876,2]
[320050181,1711115462622,-500.0,0.00032876,2]
[320050182,1711115462634,-500.0,0.00032876,2]
[320050183,1711115462643,-500.0,0.00032876,2]
[320050184,1711115462653,-2170.67,0.00032876,2]
[320050185,1711115462665,-500.0,0.00032876,2]
[320050186,1711115462675,-500.0,0.00032876,2]
[320050187,1711115462684,-500.0,0.00032876,2]
[320050188,1711115462694,-500.0,0.00032876,2]
[320050189,1711115462704,-500.0,0.00032876,2]
[320050190,1711115462714,-3328.74,0.00032876,2]
[320050191,1711115462723,-500.0,0.00032876,2]
[320050192,1711115462732,-500.0,0.00032876,2]
[320050193,1711115462742,-872.36,0.00032876,2]
[320050194,1711115462752,-567.31,0.00032876,2]
[320050195,1711115462761,-523.07,0.00032876,2]
[320050196,1711115462770,-500.0,0.00032876,2]
[320050197,1711115462779,-290.32762425,0.00032876,2]
[320050198,1711115462796,-209.67237575,0.00032876,2]
[320050199,1711115462806,-662.01,0.00032876,2]
[320050200,1711115462815,-500.0,0.00032876,2]
[320050201,1711115462825,-412.51762625,0.00032876,2]
[320050202,1711115462898,-1613.10237375,0.00032876,2]
[320050203,1711115462907,-500.0,0.00032876,2]
[320050204,1711115462917,-500.0,0.00032876,2]
[320050205,1711115462926,-500.0,0.00032876,2]
[320050206,1711115462935,-910.07092235,0.00032876,2]
[320050207,1711115463160,-309.49805112,0.00025473,2]
[320050208,1711115463170,-500.0,0.00027397,2]
[320050209,1711115463180,-2401.76,0.00027945,2]
[320050210,1711115463189,-2401.76,0.00028493,2]
[320050211,1711115463199,-2401.76,0.00029041,2]
[320050212,1711115463208,-2401.76,0.00029589,2]
[320050213,1711115463218,-2401.76,0.00030136,2]
[320050214,1711115463228,-2401.76,0.00030684,2]
[320050215,1711115463237,-2401.76,0.00031232,2]
[320050216,1711115463246,-2401.76,0.0003178,2]
[320050217,1711115463256,-8406.32907765,0.00032876,2]
[320050218,1711115463265,-500.0,0.00032876,2]
[320050219,1711115463274,-2931.18,0.00032876,2]
[320050220,1711115463283,-500.0,0.00032876,2]
[320050221,1711115463296,-500.0,0.00032876,2]
[320050222,1711115463305,-891.94,0.00032876,2]
[320050223,1711115463315,-709.56,0.00032876,2]
[320050224,1711115463325,-572.61,0.00032876,2]
[320050225,1711115463336,-500.0,0.00032876,2]
[320050226,1711115463346,-14999.80287236,0.00032876,2]
[320050227,1711115463359,-347.56,0.00032876,2]
[320050228,1711115463372,-7096.72712764,0.00032876,2]
[320050229,1711115463383,-505.53,0.00032876,2]
[320050230,1711115463395,-2628.51,0.00032876,2]
[320050231,1711115463405,-2148.91,0.00032876,2]
[320050232,1711115463416,-500.0,0.00032876,2]
[320050233,1711115463427,-599.04,0.00032876,2]
[320050234,1711115463437,-2181.35,0.00032876,2]
[320050235,1711115463447,-1053.89,0.00032876,2]
[320050236,1711115463457,-2225.28,0.00032876,2]
[320050237,1711115463467,-2785.42,0.00032876,2]
[320050238,1711115463477,-4008.14,0.00032876,2]
[320050239,1711115463486,-3127.98,0.00032876,2]
[320050240,1711115463495,-500.0,0.00032876,2]
[320050241,1711115463505,-561.94,0.00032876,2]
[320050242,1711115463514,-547.24,0.00032876,2]
[320050243,1711115463523,-1586.83,0.00032876,2]
[320050244,1711115463532,-308.44708132,0.00032876,2]
[320050245,1711115463549,-905.49,0.00032876,2]
[320050246,1711115463559,-588.65,0.00032876,2]
[320050247,1711115463569,-500.0,0.00032876,2]
[320050248,1711115463579,-604.36,0.00032876,2]
[320050249,1711115463591,-5969.81,0.00032876,2]
[320050250,1711115463602,-1166.06,0.00032876,2]
[320050251,1711115463611,-2279.41,0.00032876,2]
[320050252,1711115463623,-31274.5,0.00032876,2]
[320050253,1711115463634,-1051.13,0.00032876,2]
[320050254,1711115463644,-30529.47,0.00032876,2]
[320050255,1711115463656,-5703.1,0.00032876,2]
[320050256,1711115463668,-6699.23,0.00032876,2]
[320050257,1711115463679,-591.2,0.00032876,2]
[320050258,1711115463690,-2922.32,0.00032876,2]
[320050259,1711115463700,-500.0,0.00032876,2]
[320050260,1711115463711,-500.0,0.00032876,2]
[320050261,1711115463721,-500.0,0.00032876,2]
[320050262,1711115463732,-500.0,0.00032876,2]
[320050263,1711115463742,-2119.44,0.00032876,2]
[320050264,1711115463753,-668.63,0.00032876,2]
[320050265,1711115463764,-2385.98,0.00032876,2]
[320050266,1711115463775,-500.0,0.00032876,2]
[320050267,1711115463785,-1835.6,0.00032876,2]
[320050268,1711115463802,-500.0,0.00032876,2]
[320050269,1711115463812,-500.0,0.00032876,2]
[320050270,1711115463823,-794.49,0.00032876,2]
[320050271,1711115463833,-1781.83,0.00032876,2]
[320050272,1711115463843,-5258.14,0.00032876,2]
[320050273,1711115463854,-500.0,0.00032876,2]
[320050274,1711115463863,-665.32,0.00032876,2]
[320050275,1711115463873,-153.0,0.00032877,2]
[320050276,1711115463883,-153.0,0.00032877,2]
[320050277,1711115463893,-153.0,0.00032877,2]
[320050278,1711115463903,-153.0,0.00032877,2]
[320050279,1711115463912,-153.0,0.00032877,2]
[320050280,1711115463922,-153.0,0.00032877,2]
[320050281,1711115463932,-153.0,0.00032877,2]
[320050282,1711115463941,-306.0,0.00032877,2]
[320050283,1711115463951,-153.0,0.00032877,2]
[320050284,1711115463960,-153.0,0.00032877,2]
[320050285,1711115463969,-306.0,0.00032877,2]
[320050286,1711115463979,-306.0,0.00032877,2]
[320050287,1711115463989,-153.0,0.00032877,2]
[320050288,1711115463998,-306.0,0.00032877,2]
[320050289,1711115464008,-153.0,0.00032877,2]
[320050290,1711115464018,-153.0,0.00032877,2]
[320050291,1711115464027,-306.0,0.00032877,2]
[320050292,1711115464039,-500.0,0.00033,5]
[320050293,1711115464050,-200.0,0.00033,2]
[320050294,1711115464059,-200.0,0.00033,2]
[320050295,1711115464069,-2610.58061483,0.00033215,2]
[320050296,1711115464079,-289.581439,0.00033364,2]
[320050297,1711115464088,-287.770457,0.00033364,2]
[320050298,1711115464098,-191.041358,0.00033364,2]
[320050299,1711115464108,-654.33238,0.00033364,2]
[320050300,1711115464118,-733.637328,0.00033364,2]
[320050301,1711115464127,-165.722575,0.00033364,2]
[320050302,1711115464137,-170.869595,0.00033364,2]
[320050303,1711115464146,-182.055641,0.00033364,2]
[320050304,1711115464156,-171.83,0.00033423,2]
[320050305,1711115464165,-171.83,0.00033423,2]
[320050306,1711115464174,-171.83,0.00033423,2]
[320050307,1711115464183,-171.83,0.00033423,2]
[320050308,1711115464192,-171.83,0.00033423,2]
[320050309,1711115464201,-171.83,0.00033423,2]
[320050310,1711115464211,-687.34,0.00033423,2]
[320050311,1711115464221,-955.22,0.00033424,2]
[320050312,1711115464230,-676.25,0.00033424,2]
[320050313,1711115464239,-500.0,0.00033424,2]
[320050314,1711115464248,-616.97,0.00033424,2]